fUST/lending_fUST_20241106
["ID","MTS","AMOUNT","RATE_DAILY","PERIOD"]
[341444302,1730889043886,-500.0,0.00027397,2]
[341444303,1730889043896,-500.0,0.00027397,2]
[341444304,1730889043905,-17347.9192374,0.000275,2]
[341444305,1730889043915,-952.84694232,0.00027571,2]
[341444306,1730889043925,-500.0,0.00027671,2]
[341444307,1730889043935,-522.04984613,0.00027671,2]
[341444308,1730889043945,-446.003483,0.00027671,2]
[341444309,1730889043955,-500.0,0.00027671,2]
[341444310,1730889043965,-524.55694049,0.00027671,2]
[341444311,1730889043975,-500.0,0.00027671,2]
[341444312,1730889043984,-500.0,0.00027671,2]
[341444313,1730889043994,-505.05507572,0.00027671,2]
[341444314,1730889044003,-506.9320964,0.00027671,2]
[341444316,1730889044012,-500.0,0.00027671,2]
[341444318,1730889044022,-500.0,0.00027671,2]
[341444320,1730889044031,-508.84434533,0.00027671,2]
[341444322,1730889044040,-500.0,0.00027671,2]
[341444323,1730889044050,-500.0,0.00027671,2]
[341444325,1730889044059,-500.0,0.00027671,2]
[341444328,1730889044070,-593.43821414,0.00027671,2]
[341444330,1730889044079,-508.56068321,0.00027671,2]
[341444332,1730889044089,-500.0,0.00027671,2]
[341444334,1730889044098,-500.0,0.00027671,2]
[341444336,1730889044108,-152.79097722,0.00027671,2]
[341444338,1730889044117,-500.0,0.00027671,2]
[341444340,1730889044127,-507.61721567,0.00027671,2]
[341444342,1730889044138,-500.0,0.00027671,2]
[341444344,1730889044148,-500.0,0.00027671,2]
[341444346,1730889044158,-500.0,0.00027671,2]
[341444348,1730889044168,-500.0,0.00027671,2]
[341444350,1730889044177,-500.0,0.00027671,2]
[341444352,1730889044186,-1323.05,0.00027671,2]
[341444354,1730889044196,-247.54,0.00027671,2]
[341444356,1730889044205,-500.0,0.00027671,2]
[341444358,1730889044215,-500.0,0.00027671,2]
[341444360,1730889044224,-508.74857198,0.00027671,2]
[341444362,1730889044234,-500.0,0.00027671,2]
[341444364,1730889044244,-500.0,0.00027671,2]
[341444386,1730889044362,-500.0,0.00027671,2]
[341444389,1730889044372,-500.0,0.00027671,2]
[341444391,1730889044382,-500.0,0.00027671,2]
[341444393,1730889044392,-779.19,0.00027671,2]
[341444395,1730889044402,-500.0,0.00027671,2]
[341444397,1730889044411,-500.0,0.00027671,2]
[341444399,1730889044421,-512.47080336,0.00027671,2]
[341444401,1730889044430,-894.64,0.00027671,2]
[341444403,1730889044441,-409.53301792,0.00027671,2]
[341444405,1730889044451,-518.48730457,0.00027671,2]
[341444407,1730889044462,-508.88495406,0.00027671,2]
[341444409,1730889044473,-1161.12,0.00027671,2]
[341444412,1730889044483,-509.29596702,0.00027671,2]
[341444414,1730889044493,-500.0,0.00027671,2]
[341444416,1730889044502,-500.0,0.00027671,2]
[341444418,1730889044512,-504.75681287,0.00027671,2]
[341444419,1730889044521,-500.0,0.00027671,2]
[341444420,1730889044531,-173.11758282,0.00027671,2]
[341444422,1730889044542,-500.0,0.00027671,2]
[341444425,1730889044553,-500.0,0.00027671,2]
[341444427,1730889044562,-487.67324672,0.00027671,2]
[341444429,1730889044572,-511.8290284,0.00027671,2]
[341444431,1730889044582,-516.50382394,0.00027671,2]
[341444433,1730889044591,-596.56234697,0.00027671,2]
[341444435,1730889044601,-274.24845229,0.00027671,2]
[341444437,1730889044612,-535.59079288,0.00027671,2]
[341444439,1730889044623,-500.0,0.00027671,2]
[341444441,1730889044633,-500.0,0.00027671,2]
[341444443,1730889044643,-500.0,0.00027671,2]
[341444444,1730889044654,-500.0,0.00027671,2]
[341444445,1730889044664,-506.64817434,0.00027671,2]
[341444446,1730889044674,-500.0,0.00027671,2]
[341444447,1730889044683,-500.0,0.00027671,2]
[341444448,1730889044693,-500.0,0.00027671,2]
[341444449,1730889044702,-508.84657638,0.00027671,2]
[341444450,1730889044712,-513.76526051,0.00027671,2]
[341444451,1730889044723,-500.0,0.00027671,2]
[341444452,1730889044737,-506.6095229,0.00027671,2]
[341444453,1730889044746,-176.22197392,0.00027671,2]
[341444454,1730889044755,-500.0,0.00027671,2]
[341444455,1730889044765,-500.0,0.00027671,2]
[341444456,1730889044775,-500.0,0.00027671,2]
[341444457,1730889044785,-500.0,0.00027671,2]
[341444458,1730889044794,-500.0,0.00027671,2]
[341444459,1730889044805,-500.0,0.00027671,2]
[341444460,1730889044815,-500.0,0.00027671,2]
[341444461,1730889044825,-500.0,0.00027671,2]
[341444462,1730889044834,-229.53920148,0.00027671,2]
[341444463,1730889044845,-507.20959923,0.00027671,2]
[341444464,1730889044855,-631.1,0.00027671,2]
[341444465,1730889044865,-500.0,0.00027671,2]
[341444466,1730889044875,-500.0,0.00027671,2]
[341444467,1730889044885,-500.0,0.00027671,2]
[341444468,1730889044894,-500.0,0.00027671,2]
[341444469,1730889044905,-557.64,0.00027671,2]
[341444470,1730889044914,-500.0,0.00027671,2]
[341444471,1730889044923,-500.0,0.00027671,2]
[341444472,1730889044933,-500.0,0.00027671,2]
[341444473,1730889044943,-500.0,0.00027671,2]
[341444474,1730889044952,-503.20294273,0.00027671,2]
[341444475,1730889044961,-201.50626268,0.00027671,2]
[341444476,1730889044972,-353.19425594,0.00027671,2]
[341444477,1730889044981,-500.0,0.00027671,2]
[341444478,1730889044990,-502.83898147,0.00027671,2]
[341444479,1730889045000,-500.0,0.00027671,2]
[341444480,1730889045010,-301.06206923,0.00027671,2]
[341444481,1730889045021,-500.0,0.00027671,2]
[341444482,1730889045032,-503.83737364,0.00027671,2]
[341444483,1730889045042,-500.0,0.00027671,2]
[341444484,1730889045054,-344.15260463,0.00027671,2]
[341444485,1730889045063,-500.0,0.00027671,2]
[341444486,1730889045073,-509.82304472,0.00027671,2]
[341444487,1730889045082,-506.33631443,0.00027671,2]
[341444488,1730889045093,-500.0,0.00027671,2]
[341444489,1730889045103,-617.11,0.00027671,2]
[341444490,1730889045114,-500.0,0.00027671,2]
[341444491,1730889045124,-500.0,0.00027671,2]
[341444492,1730889045134,-500.0,0.00027671,2]
[341444493,1730889045146,-500.0,0.00027671,2]
[341444494,1730889045156,-500.0,0.00027671,2]
[341444495,1730889045166,-509.09900052,0.00027671,2]
[341444496,1730889045175,-500.0,0.00027671,2]
[341444497,1730889045186,-500.0,0.00027671,2]
[341444498,1730889045196,-500.0,0.00027671,2]
[341444499,1730889045205,-500.0,0.00027671,2]
[341444500,1730889045215,-558.51,0.00027671,2]
[341444501,1730889045226,-500.0,0.00027671,2]
[341444502,1730889045236,-382.87532477,0.00027671,2]
[341444503,1730889045250,-500.0,0.00027671,2]
[341444504,1730889045260,-500.0,0.00027671,2]
[341444505,1730889045271,-500.0,0.00027671,2]
[341444506,1730889045281,-514.29790348,0.00027671,2]
[341444507,1730889045291,-256.99,0.00027671,2]
[341444508,1730889045301,-500.0,0.00027671,2]
[341444509,1730889045310,-500.0,0.00027671,2]
[341444510,1730889045320,-500.0,0.00027671,2]
[341444511,1730889045331,-509.41895049,0.00027671,2]
[341444512,1730889045341,-428.88,0.00027671,2]
[341444513,1730889045351,-609.50057496,0.00027671,2]
[341444514,1730889045361,-1252.79,0.00027671,2]
[341444515,1730889045372,-508.40896976,0.00027671,2]
[341444516,1730889045382,-500.0,0.00027671,2]
[341444517,1730889045391,-537.46616543,0.00027671,2]
[341444518,1730889045402,-151.0,0.00027671,7]
[341444519,1730889045411,-500.0,0.00027671,2]
[341444520,1730889045420,-500.0,0.00027671,2]
[341444521,1730889045430,-151.0,0.00027671,7]
[341444522,1730889045439,-277.521395,0.00027671,7]
[341444523,1730889045449,-500.0,0.00027671,2]
[341444524,1730889045459,-506.58745277,0.00027671,2]
[341444525,1730889045470,-500.0,0.00027671,2]
[341444526,1730889045479,-500.0,0.00027671,2]
[341444527,1730889045488,-513.02850397,0.00027671,2]
[341444528,1730889045497,-689.78,0.00027671,2]
[341444529,1730889045507,-500.0,0.00027671,2]
[341444530,1730889045517,-517.94143187,0.00027671,2]
[341444531,1730889045526,-500.0,0.00027671,2]
[341444532,1730889045536,-501.58909139,0.00027671,2]
[341444533,1730889045546,-500.0,0.00027671,2]
[341444534,1730889045556,-500.0,0.00027671,2]
[341444536,1730889045566,-500.0,0.00027671,2]
[341444538,1730889045575,-500.0,0.00027671,2]
[341444539,1730889045585,-500.0,0.00027671,2]
[341444540,1730889045595,-591.06,0.00027671,2]
[341444541,1730889045606,-500.0,0.00027671,2]
[341444542,1730889045616,-500.0,0.00027671,2]
[341444543,1730889045628,-637.77403834,0.00027671,2]
[341444544,1730889045641,-1156.21,0.00027671,2]
[341444545,1730889045651,-500.0,0.00027671,2]
[341444546,1730889045663,-500.0,0.00027671,2]
[341444547,1730889045674,-508.65226021,0.00027671,2]
[341444548,1730889045684,-500.0,0.00027671,2]
[341444549,1730889045694,-507.58188059,0.00027671,2]
[341444550,1730889045703,-500.0,0.00027671,2]
[341444551,1730889045714,-500.0,0.00027671,2]
[341444552,1730889045725,-151.0,0.00027671,7]
[341444553,1730889045738,-500.0,0.00027671,2]
[341444554,1730889045748,-500.0,0.00027671,2]
[341444555,1730889045758,-500.0,0.00027671,2]
[341444556,1730889045769,-500.0,0.00027671,2]
[341444557,1730889045779,-500.0,0.00027671,2]
[341444558,1730889045791,-500.0,0.00027671,2]
[341444559,1730889045801,-500.0,0.00027671,2]
[341444560,1730889045811,-500.0,0.00027671,2]
[341444561,1730889045823,-500.0,0.00027671,2]
[341444562,1730889045833,-516.74791874,0.00027671,2]
[341444563,1730889045843,-3361.52,0.00027671,2]
[341444564,1730889045854,-500.0,0.00027671,2]
[341444565,1730889045864,-500.0,0.00027671,2]
[341444566,1730889045874,-500.0,0.00027671,2]
[341444567,1730889045885,-517.87198795,0.00027671,2]
[341444568,1730889045895,-1751.37,0.00027671,2]
[341444569,1730889045908,-500.0,0.00027671,2]
[341444570,1730889045918,-500.0,0.00027671,2]
[341444571,1730889045928,-432.25517574,0.00027671,2]
[341444572,1730889045938,-500.0,0.00027671,2]
[341444573,1730889045947,-500.0,0.00027671,2]
[341444574,1730889045956,-151.0,0.00027671,7]
[341444575,1730889045966,-500.0,0.00027671,2]
[341444576,1730889045977,-500.0,0.00027671,2]
[341444577,1730889045986,-631.91536241,0.00027671,2]
[341444578,1730889045996,-10516.5,0.00027671,2]
[341444579,1730889046007,-500.0,0.00027671,2]
[341444581,1730889046017,-500.0,0.00027671,2]
[341444582,1730889046027,-512.09164699,0.00027671,2]
[341444584,1730889046037,-500.0,0.00027671,2]
[341444586,1730889046048,-500.0,0.00027671,2]
[341444588,1730889046058,-500.0,0.00027671,2]
[341444589,1730889046068,-200.0,0.00027671,2]
[341444590,1730889046079,-510.29128254,0.00027671,2]
[341444591,1730889046089,-1871.7,0.00027671,2]
[341444592,1730889046099,-5596.0,0.00027671,2]
[341444593,1730889046109,-500.0,0.00027671,2]
[341444594,1730889046119,-646.32,0.00027671,2]
[341444595,1730889046132,-790.42,0.00027671,2]
[341444596,1730889046144,-500.0,0.00027671,2]
[341444598,1730889046155,-500.0,0.00027671,2]
[341444600,1730889046166,-420.4464469,0.00027671,2]
[341444602,1730889046176,-630.1,0.00027671,2]
[341444604,1730889046185,-151.0,0.00027671,7]
[341444606,1730889046195,-172.31773014,0.00027671,2]
[341444607,1730889046204,-151.0,0.00027671,7]
[341444608,1730889046213,-500.0,0.00027671,2]
[341444609,1730889046222,-151.0,0.00027671,7]
[341444610,1730889046231,-155.508223,0.00027671,7]
[341444611,1730889046241,-500.0,0.00027671,2]
[341444612,1730889046250,-512.62301425,0.00027671,2]
[341444613,1730889046259,-1519.97,0.00027671,2]
[341444614,1730889046268,-500.0,0.00027671,2]
[341444615,1730889046277,-500.0,0.00027671,2]
[341444616,1730889046286,-500.0,0.00027671,2]
[341444617,1730889046296,-500.0,0.00027671,2]
[341444618,1730889046304,-500.0,0.00027671,2]
[341444619,1730889046313,-500.0,0.00027671,2]
[341444620,1730889046322,-500.0,0.00027671,2]
[341444621,1730889046331,-506.38198666,0.00027671,2]
[341444622,1730889046340,-500.0,0.00027671,2]
[341444623,1730889046349,-500.0,0.00027671,2]
[341444624,1730889046358,-500.0,0.00027671,2]
[341444625,1730889046367,-500.0,0.00027671,2]
[341444626,1730889046376,-517.66741829,0.00027671,2]
[341444627,1730889046385,-330.41799,0.00027671,7]
[341444628,1730889046395,-500.0,0.00027671,2]
[341444629,1730889046405,-330.41799,0.00027671,7]
[341444630,1730889046415,-258.799336,0.00027671,7]
[341444631,1730889046425,-258.799336,0.00027671,7]
[341444632,1730889046434,-500.0,0.00027671,2]
[341444633,1730889046444,-258.799336,0.00027671,7]
[341444634,1730889046453,-258.799336,0.00027671,7]
[341444635,1730889046463,-500.0,0.00027671,2]
[341444636,1730889046474,-500.0,0.00027671,2]
[341444637,1730889046483,-500.0,0.00027671,2]
[341444638,1730889046492,-500.0,0.00027673,5]
[341444639,1730889046501,-500.0,0.00027673,5]
[341444640,1730889046511,-258.13717353,0.00027673,5]
[341444641,1730889046520,-500.0,0.00027673,5]
[341444642,1730889046529,-345.45528252,0.00027777,2]
[341444643,1730889046538,-500.0,0.00027945,2]
[341444644,1730889046548,-500.0,0.00027945,2]
[341444645,1730889046557,-500.0,0.00027945,2]
[341444646,1730889046567,-500.0,0.00027945,2]
[341444647,1730889046576,-500.0,0.00027945,2]
[341444648,1730889046585,-500.0,0.00027945,2]
[341444649,1730889046595,-500.0,0.00027945,2]
[341444650,1730889046604,-548.24997201,0.00027945,2]
[341444651,1730889046614,-500.0,0.00027945,2]
[341444652,1730889046624,-500.0,0.00027945,2]
[341444653,1730889046634,-285.45318337,0.00027945,2]
[341444654,1730889046644,-500.0,0.00027945,2]
[341444655,1730889046654,-500.0,0.00027945,2]
[341444656,1730889046664,-1323.05,0.00027945,2]
[341444657,1730889046673,-500.0,0.00027945,2]
[341444658,1730889046683,-559.13595206,0.00027945,2]
[341444659,1730889046692,-213.74497301,0.00027945,2]
[341444660,1730889046701,-500.0,0.00027945,2]
[341444661,1730889046711,-500.0,0.00027945,2]
[341444662,1730889046721,-500.0,0.00027945,2]
[341444663,1730889046731,-779.19,0.00027945,2]
[341444664,1730889046744,-500.0,0.00027945,2]
[341444665,1730889046754,-500.0,0.00027945,2]
[341444666,1730889046763,-894.64,0.00027945,2]
[341444667,1730889046773,-1161.12,0.00027945,2]
[341444668,1730889046783,-513.03700434,0.00027945,2]
[341444669,1730889046792,-538.15455622,0.00027945,2]
[341444670,1730889046803,-554.1600042,0.00027945,2]
[341444671,1730889046814,-500.0,0.00027945,2]
[341444672,1730889046824,-500.0,0.00027945,2]
[341444673,1730889046833,-500.0,0.00027945,2]
[341444674,1730889046843,-507.66462134,0.00027945,2]
[341444675,1730889046852,-500.0,0.00027945,2]
[341444676,1730889046861,-283.24869372,0.00027945,2]
[341444677,1730889046871,-500.0,0.00027945,2]
[341444678,1730889046880,-500.0,0.00027945,2]
[341444679,1730889046889,-500.0,0.00027945,2]
[341444680,1730889046899,-500.0,0.00027945,2]
[341444681,1730889046909,-500.0,0.00027945,2]
[341444682,1730889046918,-514.39995687,0.00027945,2]
[341444683,1730889046928,-500.0,0.00027945,2]
[341444684,1730889046937,-631.1,0.00027945,2]
[341444685,1730889046946,-500.0,0.00027945,2]
[341444686,1730889046956,-500.0,0.00027945,2]
[341444687,1730889046965,-557.64,0.00027945,2]
[341444688,1730889047071,-500.0,0.00027945,2]
[341444689,1730889047080,-284.72704998,0.00027945,2]
[341444690,1730889047089,-500.0,0.00027945,2]
[341444691,1730889047099,-617.11,0.00027945,2]
[341444692,1730889047108,-500.0,0.00027945,2]
[341444693,1730889047117,-500.0,0.00027945,2]
[341444694,1730889047127,-500.0,0.00027945,2]
[341444695,1730889047136,-558.51,0.00027945,2]
[341444696,1730889047145,-509.89236851,0.00027945,2]
[341444697,1730889047154,-509.49601674,0.00027945,2]
[341444698,1730889047163,-500.0,0.00027945,2]
[341444699,1730889047172,-151.0,0.00027945,7]
[341444700,1730889047182,-151.0,0.00027945,7]
[341444701,1730889047191,-151.0,0.00027945,7]
[341444702,1730889047201,-512.46475607,0.00027945,2]
[341444703,1730889047211,-276.04288,0.00027945,7]
[341444704,1730889047222,-276.04288,0.00027945,7]
[341444705,1730889047234,-1252.79,0.00027945,2]
[341444706,1730889047244,-270.28676,0.00027945,7]
[341444707,1730889047255,-270.28676,0.00027945,7]
[341444708,1730889047266,-219.069331,0.00027945,7]
[341444709,1730889047276,-219.069331,0.00027945,7]
[341444710,1730889047285,-151.0,0.00027945,7]
[341444711,1730889047295,-500.0,0.00027945,2]
[341444712,1730889047303,-500.0,0.00027945,2]
[341444713,1730889047313,-689.78,0.00027945,2]
[341444714,1730889047322,-500.0,0.00027945,2]
[341444715,1730889047331,-500.0,0.00027945,2]
[341444716,1730889047341,-500.0,0.00027945,2]
[341444717,1730889047350,-591.06,0.00027945,2]
[341444718,1730889047360,-1156.21,0.00027945,2]
[341444719,1730889047369,-500.0,0.00027945,2]
[341444720,1730889047379,-627.54615864,0.00027945,2]
[341444721,1730889047389,-500.0,0.00027945,2]
[341444722,1730889047398,-500.0,0.00027945,2]
[341444723,1730889047407,-515.30521748,0.00027945,2]
[341444724,1730889047417,-500.0,0.00027945,2]
[341444725,1730889047426,-3361.52,0.00027945,2]
[341444726,1730889047435,-500.0,0.00027945,2]
[341444727,1730889047444,-1751.37,0.00027945,2]
[341444728,1730889047453,-500.0,0.00027945,2]
[341444729,1730889047464,-508.46423195,0.00027945,2]
[341444730,1730889047475,-509.56452167,0.00027945,2]
[341444731,1730889047485,-514.09402128,0.00027945,2]
[341444732,1730889047494,-10516.5,0.00027945,2]
[341444733,1730889047503,-506.1044494,0.00027945,2]
[341444734,1730889047513,-1871.7,0.00027945,2]
[341444735,1730889047522,-5596.0,0.00027945,2]
[341444736,1730889047532,-646.32,0.00027945,2]
[341444737,1730889047543,-790.42,0.00027945,2]
[341444738,1730889047552,-630.1,0.00027945,2]
[341444739,1730889047563,-1519.97,0.00027945,2]
[341444740,1730889047573,-500.0,0.00027945,2]
[341444741,1730889047583,-509.0030765,0.00027945,2]
[341444742,1730889047592,-500.0,0.00027945,2]
[341444743,1730889047601,-500.0,0.00027945,2]
[341444744,1730889047611,-166.05576297,0.00027945,2]
[341444745,1730889047621,-511.07301584,0.00027945,2]
[341444746,1730889047631,-509.53830088,0.00027945,2]
[341444747,1730889047641,-500.0,0.00027945,2]
[341444748,1730889047650,-596.07390242,0.00027945,2]
[341444749,1730889047660,-500.0,0.00027945,2]
[341444750,1730889047669,-5474.67922602,0.0002799,2]
[341444751,1730889047680,-483.60640814,0.00028121,2]
[341444752,1730889047689,-179.255,0.0002821,19]
[341444753,1730889047699,-500.0,0.00028219,2]
[341444754,1730889047708,-500.0,0.00028219,2]
[341444755,1730889047718,-500.0,0.00028219,2]
[341444756,1730889047728,-500.0,0.00028219,2]
[341444757,1730889047742,-500.0,0.00028219,2]
[341444758,1730889047751,-500.0,0.00028219,2]
[341444759,1730889047761,-500.0,0.00028219,2]
[341444760,1730889047770,-500.0,0.00028219,2]
[341444761,1730889047780,-253.923298,0.00028219,2]
[341444762,1730889047790,-500.0,0.00028219,2]
[341444763,1730889047799,-1323.05,0.00028219,2]
[341444764,1730889047810,-500.0,0.00028219,2]
[341444765,1730889047820,-500.0,0.00028219,2]
[341444766,1730889047830,-500.0,0.00028219,2]
[341444767,1730889047839,-165.59560206,0.00028219,2]
[341444768,1730889047849,-779.19,0.00028219,2]
[341444769,1730889047858,-500.0,0.00028219,2]
[341444770,1730889047867,-500.0,0.00028219,2]
[341444771,1730889047876,-894.64,0.00028219,2]
[341444772,1730889047885,-1161.12,0.00028219,2]
[341444773,1730889047894,-264.445248,0.00028219,7]
[341444774,1730889047903,-500.0,0.00028219,2]
[341444775,1730889047912,-500.0,0.00028219,2]
[341444776,1730889047921,-151.0,0.00028219,7]
[341444777,1730889047930,-500.0,0.00028219,2]
[341444778,1730889047939,-500.0,0.00028219,2]
[341444779,1730889047948,-500.0,0.00028219,2]
[341444780,1730889047959,-500.0,0.00028219,2]
[341444781,1730889047968,-500.0,0.00028219,2]
[341444782,1730889047979,-500.0,0.00028219,2]
[341444783,1730889047989,-500.0,0.00028219,2]
[341444784,1730889047998,-151.0,0.00028219,7]
[341444785,1730889048007,-151.0,0.00028219,3]
[341444786,1730889048016,-631.1,0.00028219,2]
[341444787,1730889048025,-500.0,0.00028219,2]
[341444788,1730889048035,-154.658246,0.00028219,7]
[341444789,1730889048045,-500.0,0.00028219,2]
[341444790,1730889048055,-557.64,0.00028219,2]
[341444791,1730889048064,-500.0,0.00028219,2]
[341444792,1730889048074,-151.0,0.00028219,7]
[341444793,1730889048083,-151.0,0.00028219,7]
[341444794,1730889048093,-500.0,0.00028219,2]
[341444795,1730889048103,-617.11,0.00028219,2]
[341444796,1730889048113,-500.0,0.00028219,2]
[341444797,1730889048122,-500.0,0.00028219,2]
[341444798,1730889048132,-173.514464,0.00028219,7]
[341444799,1730889048141,-173.514464,0.00028219,7]
[341444800,1730889048151,-558.51,0.00028219,2]
[341444801,1730889048161,-500.0,0.00028219,2]
[341444802,1730889048170,-1252.79,0.00028219,2]
[341444803,1730889048180,-151.0,0.00028219,7]
[341444804,1730889048189,-151.0,0.00028219,7]
[341444805,1730889048198,-629.46211331,0.00028219,2]
[341444806,1730889048208,-500.0,0.00028219,2]
[341444807,1730889048217,-689.78,0.00028219,2]
[341444808,1730889048227,-500.0,0.00028219,2]
[341444809,1730889048237,-636.16102454,0.00028219,2]
[341444810,1730889048246,-500.0,0.00028219,2]
[341444811,1730889048255,-591.06,0.00028219,2]
[341444812,1730889048264,-1156.21,0.00028219,2]
[341444813,1730889048274,-151.0,0.00028219,7]
[341444814,1730889048283,-501.95528505,0.00028219,2]
[341444815,1730889048293,-500.0,0.00028219,2]
[341444816,1730889048303,-3361.52,0.00028219,2]
[341444817,1730889048312,-500.0,0.00028219,2]
[341444818,1730889048321,-1751.37,0.00028219,2]
[341444819,1730889048331,-500.0,0.00028219,2]
[341444820,1730889048340,-151.0,0.00028219,7]
[341444821,1730889048349,-10516.5,0.00028219,2]
[341444822,1730889048359,-1871.7,0.00028219,2]
[341444823,1730889048369,-5596.0,0.00028219,2]
[341444824,1730889048378,-646.32,0.00028219,2]
[341444825,1730889048388,-790.42,0.00028219,2]
[341444826,1730889048397,-630.1,0.00028219,2]
[341444827,1730889048407,-151.0,0.00028219,7]
[341444828,1730889048417,-1519.97,0.00028219,2]
[341444829,1730889048427,-500.0,0.00028219,2]
[341444830,1730889048439,-500.0,0.00028219,2]
[341444831,1730889048448,-330.41799,0.00028219,7]
[341444832,1730889048458,-500.0,0.00028219,2]
[341444833,1730889048468,-330.41799,0.00028219,7]
[341444834,1730889048480,-258.799336,0.00028219,7]
[341444835,1730889048489,-258.799336,0.00028219,7]
[341444836,1730889048498,-345.45528252,0.00028256,2]
[341444837,1730889048508,-500.0,0.00028309,5]
[341444838,1730889048518,-500.0,0.00028493,2]
[341444839,1730889048527,-500.0,0.00028493,2]
[341444840,1730889048536,-500.0,0.00028493,2]
[341444841,1730889048545,-500.0,0.00028493,2]
[341444842,1730889048555,-500.0,0.00028493,2]
[341444843,1730889048564,-500.0,0.00028493,2]
[341444844,1730889048573,-500.0,0.00028493,2]
[341444845,1730889048583,-500.0,0.00028493,2]
[341444846,1730889048592,-151.0,0.00028493,7]
[341444847,1730889048601,-1323.05,0.00028493,2]
[341444848,1730889048611,-500.0,0.00028493,2]
[341444849,1730889048620,-500.0,0.00028493,2]
[341444850,1730889048630,-500.0,0.00028493,2]
[341444851,1730889048640,-779.19,0.00028493,2]
[341444852,1730889048650,-500.0,0.00028493,2]
[341444853,1730889048659,-470.74121162,0.00028493,2]
[341444854,1730889048669,-151.0,0.00028493,7]
[341444855,1730889048679,-894.64,0.00028493,2]
[341444856,1730889048688,-1161.12,0.00028493,2]
[341444857,1730889048698,-231.325429,0.00028493,7]
[341444858,1730889048707,-500.0,0.00028493,2]
[341444859,1730889048717,-500.0,0.00028493,2]
[341444860,1730889048731,-500.0,0.00028493,2]
[341444861,1730889048744,-500.0,0.00028493,2]
[341444862,1730889048753,-500.0,0.00028493,2]
[341444863,1730889048763,-500.0,0.00028493,2]
[341444864,1730889048772,-109.92560989,0.00028493,2]
[341444865,1730889048892,-390.07439011,0.00028493,2]
[341444866,1730889048901,-500.0,0.00028493,2]
[341444867,1730889048911,-495.73389436,0.00028493,2]
[341444868,1730889048920,-227.17683775,0.00028493,2]
[341444869,1730889048936,-500.0,0.00028219,2]
[341444870,1730889048946,-403.92316225,0.00028493,2]
[341444871,1730889048955,-500.0,0.00028493,2]
[341444872,1730889048965,-500.0,0.00028493,2]
[341444873,1730889048977,-557.64,0.00028493,2]
[341444874,1730889048987,-500.0,0.00028493,2]
[341444875,1730889048996,-500.0,0.00028493,2]
[341444876,1730889049005,-617.11,0.00028493,2]
[341444877,1730889049015,-500.0,0.00028493,2]
[341444878,1730889049024,-500.0,0.00028493,2]
[341444879,1730889049033,-558.51,0.00028493,2]
[341444880,1730889049044,-500.0,0.00028493,2]
[341444881,1730889049054,-151.0,0.00028493,7]
[341444882,1730889049064,-151.0,0.00028493,7]
[341444883,1730889049073,-151.0,0.00028493,7]
[341444884,1730889049084,-276.04288,0.00028493,7]
[341444885,1730889049093,-276.04288,0.00028493,7]
[341444886,1730889049103,-1252.79,0.00028493,2]
[341444887,1730889049112,-270.28676,0.00028493,7]